fUST/lending_fUST_20250719
["ID","MTS","AMOUNT","RATE_DAILY","PERIOD"]
[373210502,1752907848874,-588.5,0.00017534,2]
[373210504,1752907848883,-460.0,0.00017534,2]
[373210506,1752907848893,-460.0,0.00017534,2]
[373210508,1752907848902,-329.01881849,0.00017534,2]
[373210510,1752907848912,-819.5,0.00017534,2]
[373210512,1752907848922,-3198.65,0.00017534,2]
[373210514,1752907848932,-460.0,0.00017534,2]
[373210516,1752907848941,-460.0,0.00017534,2]
[373210518,1752907848951,-460.0,0.00017534,2]
[373210520,1752907848961,-460.0,0.00017534,2]
[373210522,1752907848971,-1266.66,0.00017534,2]
[373210525,1752907848981,-1848.02,0.00017534,2]
[373210526,1752907848991,-579.8,0.00017534,2]
[373210529,1752907849002,-630.59,0.00017534,2]
[373210531,1752907849013,-460.0,0.00017534,2]
[373210533,1752907849022,-460.0,0.00017534,2]
[373210535,1752907849032,-494.24396985,0.00017534,2]
[373210537,1752907849041,-2194.67,0.00017534,2]
[373210539,1752907849051,-460.0,0.00017534,2]
[373210541,1752907849060,-460.0,0.00017534,2]
[373210543,1752907849070,-460.0,0.00017534,2]
[373210545,1752907849079,-460.0,0.00017534,2]
[373210547,1752907849092,-7435.29,0.00017534,2]
[373210549,1752907849102,-1136.64,0.00017534,2]
[373210551,1752907849111,-460.0,0.00017534,2]
[373210553,1752907849121,-460.0,0.00017534,2]
[373210555,1752907849131,-460.0,0.00017534,2]
[373210557,1752907849141,-460.0,0.00017534,2]
[373210560,1752907849152,-761.71,0.00017534,2]
[373210561,1752907849161,-684.42,0.00017534,2]
[373210564,1752907849171,-460.0,0.00017534,2]
[373210566,1752907849180,-460.0,0.00017534,2]
[373210568,1752907849190,-460.0,0.00017534,2]
[373210570,1752907849199,-460.0,0.00017534,2]
[373210572,1752907849209,-727.96,0.00017534,2]
[373210574,1752907849219,-460.0,0.00017534,2]
[373210576,1752907849233,-705.88,0.00017534,2]
[373210578,1752907849244,-460.0,0.00017534,2]
[373210580,1752907849254,-1405.27,0.00017534,2]
[373210582,1752907849264,-460.0,0.00017534,2]
[373210584,1752907849274,-4383.08,0.00017534,2]
[373210586,1752907849284,-2778.31,0.00017534,2]
[373210588,1752907849293,-378.91397889,0.00017534,2]
[373210590,1752907849304,-677.34,0.00017534,2]
[373210592,1752907849313,-692.73,0.00017534,2]
[373210594,1752907849324,-460.0,0.00017534,2]
[373210596,1752907849333,-460.0,0.00017534,2]
[373210598,1752907849343,-460.0,0.00017534,2]
[373210600,1752907849353,-460.0,0.00017534,2]
[373210602,1752907849363,-460.0,0.00017534,2]
[373210604,1752907849372,-460.0,0.00017534,2]
[373210606,1752907849382,-853.43,0.00017534,2]
[373210608,1752907849392,-561.34,0.00017534,2]
[373210610,1752907849402,-963.81,0.00017534,2]
[373210612,1752907849411,-460.0,0.00017534,2]
[373210614,1752907849421,-460.0,0.00017534,2]
[373210616,1752907849430,-641.44,0.00017534,2]
[373210618,1752907849440,-460.0,0.00017534,2]
[373210620,1752907849450,-460.0,0.00017534,2]
[373210622,1752907849460,-460.0,0.00017534,2]
[373210624,1752907849469,-460.0,0.00017534,2]
[373210626,1752907849480,-529.8,0.00017534,2]
[373210629,1752907849490,-1547.66,0.00017534,2]
[373210631,1752907849500,-520.08,0.00017534,2]
[373210633,1752907849512,-2037.7,0.00017534,2]
[373210635,1752907849521,-460.0,0.00017534,2]
[373210637,1752907849531,-2781.98,0.00017534,2]
[373210639,1752907849542,-460.0,0.00017534,2]
[373210641,1752907849552,-460.0,0.00017534,2]
[373210643,1752907849562,-460.0,0.00017534,2]
[373210645,1752907849571,-1565.73,0.00017534,2]
[373210647,1752907849581,-460.0,0.00017534,2]
[373210649,1752907849591,-460.0,0.00017534,2]
[373210651,1752907849600,-976.4,0.00017534,2]
[373210653,1752907849610,-460.0,0.00017534,2]
[373210655,1752907849620,-321.44797438,0.00017538,2]
[373210658,1752907849630,-500.44944029,0.00017542,2]
[373210660,1752907849640,-500.0,0.00017573,2]
[373210662,1752907849650,-379.63864515,0.00017573,2]
[373210664,1752907849659,-500.0,0.00017573,2]
[373210666,1752907849669,-500.0,0.00017573,2]
[373210668,1752907849678,-500.0,0.00017573,2]
[373210670,1752907849688,-500.0,0.00017573,2]
[373210672,1752907849698,-500.0,0.00017573,2]
[373210674,1752907849707,-500.0,0.00017573,2]
[373210676,1752907849718,-500.0,0.00017573,2]
[373210678,1752907849728,-500.0,0.00017573,2]
[373210680,1752907849738,-500.0,0.00017573,2]
[373210682,1752907849747,-500.0,0.00017573,2]
[373210684,1752907849758,-500.0,0.00017573,2]
[373210686,1752907849768,-500.0,0.00017573,2]
[373210688,1752907849777,-500.89162979,0.00017573,2]
[373210690,1752907849787,-500.0,0.00017573,2]
[373210692,1752907849798,-501.17883196,0.00017676,2]
[373210694,1752907849809,-460.0,0.00017706,2]
[373210696,1752907849818,-229.2491685,0.00017706,2]
[373210698,1752907849828,-460.0,0.00017706,2]
[373210700,1752907849838,-460.0,0.00017706,2]
[373210703,1752907849847,-460.0,0.00017706,2]
[373210705,1752907849857,-151.0,0.000178,2]
[373210707,1752907849867,-500.0,0.00017807,2]
[373210709,1752907849876,-441.0,0.00017808,2]
[373210711,1752907849886,-460.0,0.00017808,2]
[373210713,1752907849895,-460.0,0.00017808,2]
[373210715,1752907849905,-924.29,0.00017808,2]
[373210717,1752907849915,-460.0,0.00017808,2]
[373210719,1752907849924,-460.0,0.00017808,2]
[373210721,1752907849934,-460.0,0.00017808,2]
[373210723,1752907849943,-475.19,0.00017808,2]
[373210725,1752907849954,-460.0,0.00017808,2]
[373210727,1752907849963,-460.0,0.00017808,2]
[373210729,1752907849973,-460.0,0.00017808,2]
[373210731,1752907849983,-460.0,0.00017808,2]
[373210733,1752907849993,-460.0,0.00017808,2]
[373210735,1752907850002,-460.0,0.00017808,2]
[373210737,1752907850012,-460.0,0.00017808,2]
[373210739,1752907850022,-639.44,0.00017808,2]
[373210741,1752907850032,-460.0,0.00017808,2]
[373210743,1752907850042,-460.0,0.00017808,2]
[373210745,1752907850052,-460.0,0.00017808,2]
[373210747,1752907850062,-481.72036995,0.00017808,2]
[373210749,1752907850072,-460.0,0.00017808,2]
[373210751,1752907850083,-460.0,0.00017808,2]
[373210754,1752907850092,-460.0,0.00017808,2]
[373210756,1752907850102,-460.0,0.00017808,2]
[373210758,1752907850112,-460.0,0.00017808,2]
[373210759,1752907850121,-197.80781386,0.00017808,2]
[373210761,1752907850131,-460.0,0.00017808,2]
[373210764,1752907850141,-460.0,0.00017808,2]
[373210766,1752907850151,-460.0,0.00017808,2]
[373210768,1752907850161,-460.0,0.00017808,2]
[373210770,1752907850171,-460.0,0.00017808,2]
[373210772,1752907850181,-460.0,0.00017808,2]
[373210774,1752907850191,-460.0,0.00017808,2]
[373210775,1752907850200,-460.0,0.00017808,2]
[373210776,1752907850210,-460.0,0.00017808,2]
[373210777,1752907850220,-460.0,0.00017808,2]
[373210778,1752907850233,-460.0,0.00017808,2]
[373210779,1752907850243,-535.41929037,0.00017808,2]
[373210780,1752907850253,-460.0,0.00017808,2]
[373210781,1752907850264,-460.0,0.00017808,2]
[373210782,1752907850273,-460.0,0.00017808,2]
[373210783,1752907850283,-575.94,0.00017808,2]
[373210784,1752907850292,-460.0,0.00017808,2]
[373210785,1752907850304,-460.0,0.00017808,2]
[373210786,1752907850314,-460.0,0.00017808,2]
[373210788,1752907850324,-460.0,0.00017808,2]
[373210790,1752907850334,-460.0,0.00017808,2]
[373210792,1752907850344,-460.0,0.00017808,2]
[373210794,1752907850353,-460.0,0.00017808,2]
[373210796,1752907850363,-508.05,0.00017808,2]
[373210798,1752907850373,-3168.93,0.00017808,2]
[373210800,1752907850382,-407.41580795,0.00017808,2]
[373210802,1752907850396,-460.0,0.00017808,2]
[373210804,1752907850407,-3148.5,0.00017808,2]
[373210806,1752907850416,-629.76,0.00017808,2]
[373210808,1752907850427,-499.24,0.00017808,2]
[373210810,1752907850437,-792.23,0.00017808,2]
[373210812,1752907850446,-460.0,0.00017808,2]
[373210814,1752907850456,-588.5,0.00017808,2]
[373210816,1752907850466,-460.0,0.00017808,2]
[373210818,1752907850476,-460.0,0.00017808,2]
[373210820,1752907850486,-819.5,0.00017808,2]
[373210822,1752907850496,-3198.65,0.00017808,2]
[373210824,1752907850507,-460.0,0.00017808,2]
[373210826,1752907850517,-460.0,0.00017808,2]
[373210828,1752907850527,-460.0,0.00017808,2]
[373210830,1752907850537,-460.0,0.00017808,2]
[373210832,1752907850547,-1266.66,0.00017808,2]
[373210834,1752907850556,-1848.02,0.00017808,2]
[373210836,1752907850566,-579.8,0.00017808,2]
[373210838,1752907850576,-630.59,0.00017808,2]
[373210840,1752907850585,-460.0,0.00017808,2]
[373210842,1752907850595,-334.57719461,0.00017808,2]
[373210844,1752907850606,-2194.67,0.00017808,2]
[373210846,1752907850616,-460.0,0.00017808,2]
[373210848,1752907850626,-460.0,0.00017808,2]
[373210850,1752907850635,-460.0,0.00017808,2]
[373210852,1752907850645,-460.0,0.00017808,2]
[373210854,1752907850654,-7435.29,0.00017808,2]
[373210856,1752907850664,-1136.64,0.00017808,2]
[373210858,1752907850674,-460.0,0.00017808,2]
[373210861,1752907850684,-460.0,0.00017808,2]
[373210863,1752907850693,-460.0,0.00017808,2]
[373210864,1752907850703,-460.0,0.00017808,2]
[373210866,1752907850713,-761.71,0.00017808,2]
[373210868,1752907850723,-684.42,0.00017808,2]
[373210870,1752907850733,-460.0,0.00017808,2]
[373210873,1752907850743,-460.0,0.00017808,2]
[373210875,1752907850753,-460.0,0.00017808,2]
[373210876,1752907850762,-460.0,0.00017808,2]
[373210878,1752907850772,-727.96,0.00017808,2]
[373210880,1752907850782,-460.0,0.00017808,2]
[373210882,1752907850791,-705.88,0.00017808,2]
[373210884,1752907850801,-460.0,0.00017808,2]
[373210886,1752907850812,-1405.27,0.00017808,2]
[373210888,1752907850821,-460.0,0.00017808,2]
[373210890,1752907850831,-4383.08,0.00017808,2]
[373210892,1752907850841,-2778.31,0.00017808,2]
[373210895,1752907850853,-677.34,0.00017808,2]
[373210897,1752907850862,-692.73,0.00017808,2]
[373210899,1752907850872,-460.0,0.00017808,2]
[373210901,1752907850882,-454.84682364,0.00017808,2]
[373210903,1752907850892,-460.0,0.00017808,2]
[373210905,1752907850902,-460.0,0.00017808,2]
[373210907,1752907850913,-460.0,0.00017808,2]
[373210909,1752907850923,-460.0,0.00017808,2]
[373210911,1752907850936,-853.43,0.00017808,2]
[373210913,1752907850945,-561.34,0.00017808,2]
[373210915,1752907850955,-963.81,0.00017808,2]
[373210917,1752907850965,-460.0,0.00017808,2]
[373210919,1752907850975,-460.0,0.00017808,2]
[373210921,1752907850985,-641.44,0.00017808,2]
[373210923,1752907850995,-460.0,0.00017808,2]
[373210925,1752907851005,-460.0,0.00017808,2]
[373210927,1752907851015,-460.0,0.00017808,2]
[373210929,1752907851024,-460.0,0.00017808,2]
[373210931,1752907851034,-529.8,0.00017808,2]
[373210933,1752907851044,-1547.66,0.00017808,2]
[373210935,1752907851054,-520.08,0.00017808,2]
[373210937,1752907851063,-2037.7,0.00017808,2]
[373210939,1752907851072,-460.0,0.00017808,2]
[373210941,1752907851082,-2781.98,0.00017808,2]
[373210943,1752907851092,-460.0,0.00017808,2]
[373210945,1752907851102,-460.0,0.00017808,2]
[373210947,1752907851111,-460.0,0.00017808,2]
[373210949,1752907851120,-1565.73,0.00017808,2]
[373210951,1752907851131,-460.0,0.00017808,2]
[373210953,1752907851140,-976.4,0.00017808,2]
[373210955,1752907851149,-500.0,0.00017812,2]
[373210957,1752907851159,-1897.27721248,0.00017823,2]
[373210959,1752907851169,-5224.8904645,0.00017831,2]
[373210961,1752907851178,-1053.80709739,0.00017857,2]
[373210973,1752907851287,-502.30893642,0.00017901,2]
[373210975,1752907851297,-1680.0,0.00017963,2]
[373210977,1752907851308,-460.0,0.0001798,2]
[373210979,1752907851319,-347.07672216,0.0001798,2]
[373210981,1752907851328,-460.0,0.0001798,2]
[373210983,1752907851338,-460.0,0.0001798,2]
[373210985,1752907851348,-1500.0,0.00018068,2]
[373210987,1752907851357,-876.9,0.00018071,3]
[373210989,1752907851367,-438.44,0.00018071,3]
[373210991,1752907851376,-1753.8,0.00018072,3]
[373210993,1752907851386,-500.0,0.00018081,2]
[373210995,1752907851396,-441.0,0.00018082,2]
[373210997,1752907851406,-460.0,0.00018082,2]
[373210999,1752907851415,-460.0,0.00018082,2]
[373211001,1752907851425,-924.29,0.00018082,2]
[373211003,1752907851434,-474.64235238,0.00018082,2]
[373211005,1752907851444,-460.0,0.00018082,2]
[373211007,1752907851453,-460.0,0.00018082,2]
[373211009,1752907851463,-475.19,0.00018082,2]
[373211011,1752907851472,-542.63791258,0.00018082,2]
[373211013,1752907851482,-460.0,0.00018082,2]
[373211015,1752907851492,-460.0,0.00018082,2]
[373211017,1752907851501,-460.0,0.00018082,2]
[373211019,1752907851511,-460.0,0.00018082,2]
[373211021,1752907851521,-460.0,0.00018082,2]
[373211023,1752907851531,-460.0,0.00018082,2]
[373211025,1752907851541,-639.44,0.00018082,2]
[373211027,1752907851551,-460.0,0.00018082,2]
[373211029,1752907851561,-460.0,0.00018082,2]
[373211031,1752907851570,-460.0,0.00018082,2]
[373211033,1752907851580,-460.0,0.00018082,2]
[373211035,1752907851589,-460.0,0.00018082,2]
[373211037,1752907851599,-374.17503605,0.00018082,2]
[373211039,1752907851609,-460.0,0.00018082,2]
[373211041,1752907851618,-460.0,0.00018082,2]
[373211043,1752907851628,-492.98263643,0.00018082,2]
[373211045,1752907851638,-460.0,0.00018082,2]
[373211047,1752907851647,-460.0,0.00018082,2]
[373211049,1752907851656,-460.0,0.00018082,2]
[373211051,1752907851665,-460.0,0.00018082,2]
[373211053,1752907851675,-562.42366653,0.00018082,2]
[373211055,1752907851684,-460.0,0.00018082,2]
[373211057,1752907851694,-434.75746769,0.00018082,2]
[373211059,1752907851704,-460.0,0.00018082,2]
[373211061,1752907851713,-460.0,0.00018082,2]
[373211063,1752907851723,-460.0,0.00018082,2]
[373211065,1752907851733,-460.0,0.00018082,2]
[373211067,1752907851743,-460.0,0.00018082,2]
[373211069,1752907851752,-575.94,0.00018082,2]
[373211071,1752907851762,-460.0,0.00018082,2]
[373211073,1752907851771,-460.0,0.00018082,2]
[373211075,1752907851781,-460.0,0.00018082,2]
[373211077,1752907851791,-460.0,0.00018082,2]
[373211079,1752907851801,-460.0,0.00018082,2]
[373211081,1752907851812,-460.0,0.00018082,2]
[373211083,1752907851822,-460.0,0.00018082,2]
[373211085,1752907851833,-508.05,0.00018082,2]
[373211087,1752907851843,-3168.93,0.00018082,2]
[373211089,1752907851852,-460.0,0.00018082,2]
[373211091,1752907851862,-3148.5,0.00018082,2]
[373211093,1752907851871,-629.76,0.00018082,2]
[373211095,1752907851881,-499.24,0.00018082,2]
[373211097,1752907851891,-792.23,0.00018082,2]
[373211099,1752907851900,-460.0,0.00018082,2]
[373211101,1752907851910,-588.5,0.00018082,2]
[373211103,1752907851919,-460.0,0.00018082,2]
[373211105,1752907851928,-460.0,0.00018082,2]
[373211107,1752907851937,-819.5,0.00018082,2]
[373211109,1752907851947,-3198.65,0.00018082,2]
[373211111,1752907851958,-460.0,0.00018082,2]
[373211113,1752907851968,-460.0,0.00018082,2]
[373211115,1752907851978,-460.0,0.00018082,2]
[373211117,1752907851988,-518.30338123,0.00018082,2]
[373211119,1752907851999,-1266.66,0.00018082,2]
[373211121,1752907852008,-1848.02,0.00018082,2]
[373211123,1752907852018,-579.8,0.00018082,2]
[373211125,1752907852027,-630.59,0.00018082,2]
[373211127,1752907852037,-472.4427842,0.00018082,2]
[373211129,1752907852047,-2194.67,0.00018082,2]
[373211131,1752907852056,-460.0,0.00018082,2]
[373211133,1752907852066,-460.0,0.00018082,2]
[373211135,1752907852076,-7435.29,0.00018082,2]
[373211138,1752907852086,-1136.64,0.00018082,2]
[373211139,1752907852095,-460.0,0.00018082,2]
[373211141,1752907852105,-460.0,0.00018082,2]
[373211143,1752907852114,-460.0,0.00018082,2]
[373211145,1752907852123,-460.0,0.00018082,2]
[373211147,1752907852133,-761.71,0.00018082,2]
[373211149,1752907852143,-684.42,0.00018082,2]
[373211152,1752907852154,-460.0,0.00018082,2]
[373211153,1752907852163,-460.0,0.00018082,2]
[373211155,1752907852173,-460.0,0.00018082,2]
[373211157,1752907852182,-727.96,0.00018082,2]
[373211159,1752907852192,-460.0,0.00018082,2]
[373211162,1752907852201,-705.88,0.00018082,2]
[373211163,1752907852210,-460.0,0.00018082,2]
[373211165,1752907852220,-1405.27,0.00018082,2]
[373211167,1752907852233,-460.0,0.00018082,2]
[373211170,1752907852243,-2778.31,0.00018082,2]
[373211172,1752907852252,-4383.08,0.00018082,2]
[373211174,1752907852262,-677.34,0.00018082,2]
[373211176,1752907852271,-692.73,0.00018082,2]
[373211178,1752907852281,-460.0,0.00018082,2]
[373211180,1752907852291,-460.0,0.00018082,2]
[373211181,1752907852302,-460.0,0.00018082,2]
[373211184,1752907852312,-460.0,0.00018082,2]
[373211186,1752907852321,-460.0,0.00018082,2]
[373211188,1752907852331,-853.43,0.00018082,2]
[373211189,1752907852340,-561.34,0.00018082,2]
[373211191,1752907852350,-963.81,0.00018082,2]
[373211194,1752907852360,-460.0,0.00018082,2]
[373211195,1752907852369,-460.0,0.00018082,2]
[373211197,1752907852379,-641.44,0.00018082,2]
[373211200,1752907852389,-460.0,0.00018082,2]
[373211202,1752907852398,-460.0,0.00018082,2]
[373211203,1752907852408,-460.0,0.00018082,2]
[373211205,1752907852417,-460.0,0.00018082,2]
[373211207,1752907852427,-529.8,0.00018082,2]
[373211210,1752907852437,-1547.66,0.00018082,2]
[373211211,1752907852446,-520.08,0.00018082,2]
[373211213,1752907852456,-2037.7,0.00018082,2]
[373211215,1752907852465,-460.0,0.00018082,2]
[373211216,1752907852475,-2781.98,0.00018082,2]
[373211217,1752907852485,-460.0,0.00018082,2]
[373211218,1752907852494,-460.0,0.00018082,2]
[373211219,1752907852503,-460.0,0.00018082,2]
[373211220,1752907852513,-1565.73,0.00018082,2]
[373211221,1752907852523,-460.0,0.00018082,2]
[373211222,1752907852532,-976.4,0.00018082,2]
[373211223,1752907852542,-151.0,0.000181,2]
[373211224,1752907852552,-500.0,0.00018121,2]
[373211225,1752907852561,-1000.0,0.00018121,2]
[373211226,1752907852571,-302.17969699,0.00018121,2]
[373211227,1752907852580,-500.0,0.00018121,2]
[373211228,1752907852589,-500.69722503,0.00018121,2]
[373211229,1752907852599,-1000.0,0.00018121,2]
[373211230,1752907852609,-1000.0,0.00018121,2]
[373211231,1752907852619,-971.66974233,0.00018121,2]
[373211232,1752907852629,-1000.0,0.00018121,2]
[373211233,1752907852638,-1000.0,0.00018121,2]
[373211234,1752907852648,-500.0,0.00018121,2]
[373211235,1752907852657,-1000.0,0.00018121,2]
[373211236,1752907852667,-5224.8904645,0.00018141,2]
[373211237,1752907852677,-296.0,0.00018148,2]
[373211238,1752907852687,-420.0,0.00018148,2]
[373211239,1752907852696,-420.0,0.00018148,2]
[373211240,1752907852706,-420.0,0.00018148,2]
[373211241,1752907852715,-420.0,0.00018148,2]
[373211243,1752907852724,-160.0,0.00018208,2]
[373211244,1752907852733,-12612.80205064,0.00018208,2]
[373211246,1752907852744,-160.0,0.00018208,2]
[373211248,1752907852753,-476.34170116,0.00018208,2]
[373211250,1752907852763,-160.0,0.00018208,2]
[373211252,1752907852772,-160.0,0.00018208,2]
[373211254,1752907852782,-160.0,0.00018208,2]
[373211256,1752907852791,-525.83049785,0.00018208,2]
[373211258,1752907852800,-230.94145789,0.00018208,2]
[373211260,1752907852810,-160.0,0.00018208,2]
[373211262,1752907852819,-160.0,0.00018208,2]
[373211264,1752907852829,-215.67360783,0.00018208,2]
[373211266,1752907852838,-160.0,0.00018208,2]
[373211268,1752907852848,-839.454303,0.00018208,2]
[373211270,1752907852858,-160.0,0.00018208,2]
[373211272,1752907852867,-214.52603969,0.00018208,2]
[373211274,1752907852877,-1680.0,0.00018238,2]
[373211276,1752907852886,-460.0,0.00018254,2]
[373211278,1752907852896,-460.0,0.00018254,2]
[373211280,1752907852905,-460.0,0.00018254,2]
[373211282,1752907852915,-460.0,0.00018254,2]
[373211284,1752907852925,-900.0,0.00018293,2]
[373211286,1752907852935,-500.0,0.00018355,2]
[373211288,1752907852944,-441.0,0.00018356,2]
[373211290,1752907852954,-460.0,0.00018356,2]
[373211292,1752907852965,-460.0,0.00018356,2]
[373211294,1752907852974,-924.29,0.00018356,2]
[373211296,1752907852983,-345.82813616,0.00018356,2]
[373211298,1752907852993,-460.0,0.00018356,2]
[373211300,1752907853003,-475.19,0.00018356,2]
[373211302,1752907853013,-460.0,0.00018356,2]
[373211304,1752907853022,-460.0,0.00018356,2]
[373211306,1752907853031,-460.0,0.00018356,2]
[373211308,1752907853041,-460.0,0.00018356,2]
[373211310,1752907853050,-460.0,0.00018356,2]
[373211312,1752907853059,-460.0,0.00018356,2]
[373211314,1752907853069,-639.44,0.00018356,2]
[373211316,1752907853079,-460.0,0.00018356,2]
[373211318,1752907853089,-460.0,0.00018356,2]
[373211320,1752907853098,-471.55391111,0.00018356,2]
[373211322,1752907853107,-460.0,0.00018356,2]
[373211324,1752907853117,-460.0,0.00018356,2]
[373211326,1752907853126,-460.0,0.00018356,2]
[373211328,1752907853136,-460.0,0.00018356,2]
[373211330,1752907853145,-460.0,0.00018356,2]
[373211332,1752907853155,-460.0,0.00018356,2]
[373211355,1752907853376,-460.0,0.00018356,2]
[373211357,1752907853386,-460.0,0.00018356,2]
[373211359,1752907853396,-460.0,0.00018356,2]
[373211361,1752907853406,-460.0,0.00018356,2]
[373211363,1752907853415,-460.0,0.00018356,2]
[373211365,1752907853425,-460.0,0.00018356,2]
[373211367,1752907853435,-460.0,0.00018356,2]
[373211369,1752907853445,-460.0,0.00018356,2]
[373211371,1752907853454,-575.94,0.00018356,2]
[373211373,1752907853463,-460.0,0.00018356,2]
[373211375,1752907853473,-460.0,0.00018356,2]
[373211377,1752907853483,-460.0,0.00018356,2]
[373211379,1752907853492,-560.3427575,0.00018356,2]
[373211381,1752907853502,-460.0,0.00018356,2]
[373211383,1752907853512,-460.0,0.00018356,2]
[373211385,1752907853522,-460.0,0.00018356,2]
[373211387,1752907853531,-508.05,0.00018356,2]
[373211389,1752907853541,-3168.93,0.00018356,2]
[373211391,1752907853551,-3148.5,0.00018356,2]
[373211393,1752907853562,-629.76,0.00018356,2]
[373211395,1752907853572,-499.24,0.00018356,2]
[373211397,1752907853583,-792.23,0.00018356,2]
[373211399,1752907853593,-460.0,0.00018356,2]
[373211401,1752907853603,-588.5,0.00018356,2]
[373211403,1752907853613,-460.0,0.00018356,2]
[373211405,1752907853622,-473.79777371,0.00018356,2]
[373211407,1752907853632,-819.5,0.00018356,2]
[373211409,1752907853643,-3198.65,0.00018356,2]
[373211411,1752907853654,-460.0,0.00018356,2]
[373211413,1752907853664,-296.02191902,0.00018356,2]
[373211415,1752907853674,-460.0,0.00018356,2]
[373211417,1752907853684,-1266.66,0.00018356,2]
[373211419,1752907853694,-1848.02,0.00018356,2]
[373211421,1752907853704,-579.8,0.00018356,2]
[373211423,1752907853714,-630.59,0.00018356,2]
[373211425,1752907853723,-2194.67,0.00018356,2]
[373211437,1752907853733,-460.0,0.00018356,2]
[373211440,1752907853842,-460.0,0.00018356,2]
[373211442,1752907853853,-7435.29,0.00018356,2]
[373211444,1752907853862,-1136.64,0.00018356,2]
[373211446,1752907853873,-460.0,0.00018356,2]
[373211448,1752907853882,-460.0,0.00018356,2]
[373211450,1752907853891,-460.0,0.00018356,2]
[373211452,1752907853900,-460.0,0.00018356,2]
[373211454,1752907853910,-761.71,0.00018356,2]
[373211456,1752907853919,-684.42,0.00018356,2]
[373211458,1752907853929,-174.18791115,0.00018356,2]
[373211460,1752907853938,-460.0,0.00018356,2]
[373211461,1752907853948,-460.0,0.00018356,2]
[373211464,1752907853957,-460.0,0.00018356,2]
[373211465,1752907853967,-727.96,0.00018356,2]
[373211467,1752907853977,-460.0,0.00018356,2]
[373211469,1752907853988,-705.88,0.00018356,2]
[373211472,1752907853998,-460.0,0.00018356,2]
[373211473,1752907854007,-1405.27,0.00018356,2]
[373211475,1752907854017,-559.22238188,0.00018356,2]
[373211477,1752907854026,-2778.31,0.00018356,2]
[373211479,1752907854035,-4383.08,0.00018356,2]
[373211481,1752907854044,-677.34,0.00018356,2]
[373211483,1752907854054,-692.73,0.00018356,2]
[373211485,1752907854063,-460.0,0.00018356,2]
[373211487,1752907854075,-460.0,0.00018356,2]
[373211489,1752907854084,-460.0,0.00018356,2]
[373211491,1752907854094,-460.0,0.00018356,2]
[373211493,1752907854104,-460.0,0.00018356,2]
[373211495,1752907854114,-853.43,0.00018356,2]
[373211498,1752907854125,-561.34,0.00018356,2]
[373211499,1752907854135,-963.81,0.00018356,2]
[373211501,1752907854147,-524.33829909,0.00018356,2]
[373211503,1752907854157,-460.0,0.00018356,2]
[373211505,1752907854167,-641.44,0.00018356,2]
[373211508,1752907854177,-448.49853543,0.00018356,2]
[373211509,1752907854186,-460.0,0.00018356,2]